fUSD/lending_fUSD_20240118
["ID","MTS","AMOUNT","RATE_DAILY","PERIOD"]
[312067260,1705594266606,-348.24857907,0.00035242,2]
[312067261,1705594266615,-9328.80161516,0.00035242,2]
[312067262,1705594266625,-1755.47606821,0.00035242,2]
[312067263,1705594266634,-20000.0,0.00035242,7]
[312067264,1705594266644,-10000.0,0.00035242,7]
[312067265,1705594266653,-17317.57301,0.00035242,7]
[312067266,1705594266663,-22941.92,0.00035242,7]
[312067267,1705594266672,-658.97611598,0.00035242,10]
[312067268,1705594266682,-1000.0,0.00035242,10]
[312067269,1705594266692,-500.0,0.00035242,10]
[312067270,1705594266701,-106019.62826149,0.00035242,2]
[312067271,1705594266710,-530.639816,0.00035242,5]
[312067272,1705594266720,-1873.78736454,0.00035242,5]
[312067273,1705594266730,-922.34063794,0.00035242,5]
[312067274,1705594266739,-559.34801297,0.00035242,5]
[312067275,1705594266747,-17749.35519524,0.00035242,5]
[312067276,1705594266757,-4665.82645493,0.00035242,5]
[312067277,1705594266766,-926.28195736,0.00035242,5]
[312067278,1705594266775,-229.6127239,0.00035242,5]
[312067279,1705594266784,-24500.81941705,0.00035242,5]
[312067280,1705594266793,-330.92916756,0.00035242,5]
[312067281,1705594266803,-783.91764971,0.00035242,2]
[312067282,1705594266815,-214.58408233,0.00035242,2]
[312067283,1705594266825,-501.03085143,0.00035242,15]
[312067284,1705594266834,-5262.2920037,0.00035242,7]
[312067285,1705594266844,-526.17756105,0.00035242,7]
[312067286,1705594266853,-708.25206807,0.00035242,10]
[312067287,1705594266863,-2368.98855348,0.00035242,7]
[312067288,1705594266872,-287.82851225,0.00035242,14]
[312067289,1705594266881,-5500.14320505,0.00035242,5]
[312067290,1705594266890,-872.46536002,0.00035242,2]
[312067291,1705594266900,-26366.00605759,0.00035242,2]
[312067292,1705594266910,-9113.34553664,0.00035242,2]
[312067293,1705594266919,-600109.30024923,0.00035242,6]
[312067294,1705594266928,-624.19907346,0.00035242,2]
[312067295,1705594266938,-5000.0,0.00035242,10]
[312067296,1705594266947,-2000.0,0.00035242,2]
[312067297,1705594266956,-2000.0,0.00035242,2]
[312067298,1705594266966,-2000.0,0.00035242,2]
[312067299,1705594266976,-2000.0,0.00035242,2]
[312067300,1705594266986,-2000.0,0.00035242,2]
[312067301,1705594266996,-2000.0,0.00035242,2]
[312067302,1705594267005,-427.73036959,0.00035242,2]
[312067303,1705594267015,-3992.59856131,0.00035242,7]
[312067304,1705594267025,-1111475.66019969,0.00035242,10]
[312067305,1705594267034,-165178.77578203,0.00035242,2]
[312067306,1705594267044,-16063.62947592,0.00035242,2]
[312067307,1705594267053,-12802.68533064,0.00035242,2]
[312067308,1705594267063,-1210.0,0.00035242,2]
[312067309,1705594267072,-2106.37810445,0.00035242,2]
[312067310,1705594267082,-332.30035916,0.00035242,2]
[312067311,1705594267091,-2870.53622484,0.00035242,2]
[312067312,1705594267101,-5761.18409854,0.00035242,2]
[312067313,1705594267110,-1451.58401109,0.00035242,2]
[312067314,1705594267120,-7038.50460012,0.00035242,2]
[312067315,1705594267130,-2609.94460351,0.00035242,2]
[312067316,1705594267140,-2343.21442409,0.00035242,2]
[312067317,1705594267151,-2550.5662773,0.00035242,2]
[312067318,1705594267161,-131178.12595636,0.00035242,2]
[312067319,1705594267171,-3101.88752132,0.00035242,2]
[312067320,1705594267181,-166.35955759,0.00035242,2]
[312067321,1705594267190,-9948.3775964,0.00035242,2]
[312067322,1705594267200,-3019.31903011,0.00035242,2]
[312067323,1705594267210,-3639.5498039,0.00035242,2]
[312067324,1705594267219,-14444.18553836,0.00035242,2]
[312067325,1705594267229,-1020.23242673,0.00035242,2]
[312067326,1705594267240,-4781.4747505,0.00035242,2]
[312067327,1705594267250,-172.45744054,0.00035242,2]
[312067328,1705594267260,-997.30506012,0.00035242,2]
[312067329,1705594267269,-160.29229031,0.00035242,2]
[312067330,1705594267279,-8812.16506453,0.00035242,2]
[312067331,1705594267289,-1251.39405801,0.00035242,2]
[312067332,1705594267299,-4717.83362797,0.00035242,2]
[312067333,1705594267308,-6712.39538713,0.00035242,2]
[312067334,1705594267318,-21660.43881983,0.00035242,2]
[312067335,1705594267327,-12249.61318934,0.00035242,2]
[312067336,1705594267337,-1833.88924131,0.00035242,2]
[312067337,1705594267346,-643.0,0.00035242,2]
[312067338,1705594267355,-925.93114613,0.00035242,2]
[312067339,1705594267365,-8392.39961323,0.00035242,2]
[312067340,1705594267374,-546.9056969,0.00035242,2]
[312067341,1705594267384,-762.02659609,0.00035242,2]
[312067342,1705594267393,-29430.66654505,0.00035242,2]
[312067343,1705594267403,-206.20063868,0.00035242,2]
[312067344,1705594267413,-198.89805024,0.00035242,2]
[312067345,1705594267422,-8774.66344806,0.00035242,2]
[312067346,1705594267433,-550.0,0.00035242,2]
[312067347,1705594267443,-997.58721929,0.00035242,2]
[312067348,1705594267452,-10223.68288636,0.00035242,2]
[312067349,1705594267462,-161691.35499812,0.00035242,2]
[312067350,1705594267471,-40607.80598569,0.00035242,2]
[312067351,1705594267481,-3989.35461826,0.00035242,2]
[312067352,1705594267491,-3710.12774852,0.00035242,7]
[312067353,1705594267500,-428.94371851,0.00035242,2]
[312067354,1705594267510,-1019.42583515,0.00035242,2]
[312067355,1705594267521,-4318.46258597,0.00035242,2]
[312067356,1705594267532,-20300.14993073,0.00035242,2]
[312067357,1705594267542,-2500.0,0.00035242,2]
[312067358,1705594267552,-553.6264326,0.00035242,2]
[312067359,1705594267563,-26560.78768208,0.00035242,2]
[312067360,1705594267573,-2274.0437533,0.00035242,2]
[312067361,1705594267584,-230.05668018,0.00035242,2]
[312067362,1705594267595,-515.15479057,0.00035242,2]
[312067363,1705594267605,-261115.85698064,0.00035242,2]
[312067364,1705594267615,-585.8127705,0.00035242,7]
[312067365,1705594267625,-99981.40524283,0.00035242,5]
[312067366,1705594267636,-10137.4246132,0.00035242,2]
[312067367,1705594267646,-2972.0,0.00035242,10]
[312067368,1705594267657,-582.65634172,0.00035242,6]
[312067369,1705594267667,-5046.13036294,0.00035242,4]
[312067370,1705594267677,-1212.27152017,0.00035242,4]
[312067371,1705594267686,-4407.81719374,0.00035242,4]
[312067372,1705594267696,-40706.75313433,0.00035242,4]
[312067373,1705594267706,-1219.0,0.00035242,7]
[312067374,1705594267715,-378.66640714,0.00035242,2]
[312067375,1705594267725,-2089.173,0.00035242,10]
[312067376,1705594267735,-2000.0,0.00035242,12]
[312067377,1705594267745,-14288.42250485,0.00035242,2]
[312067378,1705594267755,-9774.63488923,0.00035242,2]
[312067379,1705594267764,-1240.47550154,0.00035242,15]
[312067380,1705594267774,-666.75184488,0.00035242,2]
[312067381,1705594267784,-18614.98109619,0.00035242,3]
[312067382,1705594267793,-86098.32059257,0.00035242,15]
[312067383,1705594267804,-2773.0,0.00035242,10]
[312067384,1705594267816,-166.70547032,0.00035242,10]
[312067385,1705594267826,-158.57219532,0.00035242,2]
[312067386,1705594267838,-49485.35292446,0.00035242,3]
[312067387,1705594267848,-3766.71559482,0.00035242,3]
[312067388,1705594267858,-2000.0,0.00035242,14]
[312067389,1705594267867,-623.53575226,0.00035242,2]
[312067390,1705594267877,-52000.0,0.00035242,2]
[312067391,1705594267887,-1066.0,0.00035242,10]
[312067392,1705594267897,-17767.608,0.00035242,7]
[312067393,1705594267906,-1132.22798549,0.00035242,9]
[312067394,1705594267916,-1217.80006062,0.00035242,10]
[312067395,1705594267926,-155.197186,0.00035242,12]
[312067396,1705594267935,-2275.69566578,0.00035242,2]
[312067397,1705594267945,-1599.94254215,0.00035242,2]
[312067398,1705594267954,-50000.0,0.00035242,30]
[312067399,1705594267964,-50000.0,0.00035242,31]
[312067400,1705594267974,-3056.29,0.00035242,2]
[312067401,1705594267985,-1000.0,0.00035242,30]
[312067402,1705594267994,-3018.83065799,0.00035242,120]
[312067403,1705594268004,-500.0,0.00035242,120]
[312067404,1705594268014,-3321.34580727,0.00035242,2]
[312067405,1705594268024,-185.0,0.00035242,120]
[312067406,1705594268034,-179.95360954,0.00035242,120]
[312067407,1705594268045,-1175.962499,0.00035242,120]
[312067408,1705594268054,-567.18950117,0.00035242,10]
[312067409,1705594268064,-270.43292908,0.00035242,30]
[312067410,1705594268074,-554.17931458,0.00035242,120]
[312067411,1705594268083,-1186.23771091,0.00035242,7]
[312067412,1705594268093,-300.54673484,0.00035242,120]
[312067413,1705594268103,-2140.31928302,0.00035242,120]
[312067414,1705594268112,-299.33223485,0.00035242,120]
[312067415,1705594268123,-439.96185585,0.00035242,120]
[312067416,1705594268132,-481.21129194,0.00035242,21]
[312067417,1705594268142,-2125.21842824,0.00035242,120]
[312067418,1705594268152,-8704.52,0.00035242,30]
[312067419,1705594268162,-6002.44699051,0.00035242,2]
[312067420,1705594268172,-300.0,0.00035242,54]
[312067421,1705594268182,-500.0,0.00035242,31]
[312067422,1705594268192,-1700.13313488,0.00035242,120]
[312067423,1705594268202,-8812.75593611,0.00035242,20]
[312067424,1705594268212,-8647.0,0.00035242,7]
[312067425,1705594268222,-8647.0,0.00035242,7]
[312067426,1705594268231,-8649.0,0.00035242,7]
[312067427,1705594268242,-9550.61,0.00035242,20]
[312067428,1705594268251,-222000.0,0.00035242,20]
[312067429,1705594268260,-998.0,0.00035242,2]
[312067430,1705594268271,-15838.167241,0.00035242,2]
[312067431,1705594268280,-748.3875,0.00035242,2]
[312067432,1705594268290,-1496.775,0.00035242,2]
[312067433,1705594268301,-2245.1625,0.00035242,2]
[312067434,1705594268311,-2993.55,0.00035242,2]
[312067435,1705594268321,-3741.9375,0.00035242,2]
[312067436,1705594268331,-4490.325,0.00035242,2]
[312067437,1705594268340,-5238.7125,0.00035242,2]
[312067438,1705594268352,-5987.1,0.00035242,2]
[312067439,1705594268362,-6735.4875,0.00035242,2]
[312067440,1705594268372,-7483.875,0.00035242,2]
[312067441,1705594268384,-8232.2625,0.00035242,2]
[312067442,1705594268394,-8980.65,0.00035242,2]
[312067443,1705594268405,-9729.0375,0.00035242,2]
[312067444,1705594268415,-3742.16274722,0.00035242,2]
[312067445,1705594268425,-305.638467,0.00035242,30]
[312067446,1705594268436,-1000.0,0.00035242,2]
[312067447,1705594268445,-1000.0,0.00035242,2]
[312067448,1705594268457,-1000.0,0.00035242,2]
[312067449,1705594268466,-1000.0,0.00035242,2]
[312067450,1705594268476,-1000.0,0.00035242,2]
[312067451,1705594268487,-1000.0,0.00035242,2]
[312067452,1705594268497,-1000.0,0.00035242,2]
[312067453,1705594268507,-1000.0,0.00035242,2]
[312067454,1705594268519,-1000.0,0.00035242,2]
[312067455,1705594268528,-1000.0,0.00035242,2]
[312067456,1705594268538,-1436.167199,0.00035242,2]
[312067457,1705594268549,-1000.0,0.00035242,10]
[312067458,1705594268559,-500.0,0.00035242,3]
[312067459,1705594268569,-500.0,0.00035242,3]
[312067460,1705594268582,-500.0,0.00035242,3]
[312067461,1705594268591,-500.0,0.00035242,3]
[312067462,1705594268602,-500.0,0.00035242,3]
[312067463,1705594268611,-500.0,0.00035242,3]
[312067464,1705594268621,-500.0,0.00035242,3]
[312067465,1705594268632,-500.0,0.00035242,3]
[312067466,1705594268643,-500.0,0.00035242,3]
[312067467,1705594268654,-500.0,0.00035242,3]
[312067468,1705594268663,-500.0,0.00035242,3]
[312067469,1705594268673,-500.0,0.00035242,3]
[312067470,1705594268683,-500.0,0.00035242,3]
[312067471,1705594268694,-500.0,0.00035242,3]
[312067472,1705594268705,-500.0,0.00035242,3]
[312067473,1705594268715,-500.0,0.00035242,3]
[312067474,1705594268724,-500.0,0.00035242,3]
[312067475,1705594268734,-500.0,0.00035242,3]
[312067476,1705594268745,-500.0,0.00035242,3]
[312067477,1705594268754,-500.0,0.00035242,3]
[312067478,1705594268764,-500.0,0.00035242,3]
[312067479,1705594268775,-500.0,0.00035242,3]
[312067480,1705594268785,-500.0,0.00035242,3]
[312067481,1705594268796,-500.0,0.00035242,3]
[312067482,1705594268809,-500.0,0.00035242,3]
[312067483,1705594268819,-500.0,0.00035242,3]
[312067484,1705594268828,-500.0,0.00035242,3]
[312067485,1705594268838,-500.0,0.00035242,3]
[312067486,1705594268849,-500.0,0.00035242,3]
[312067487,1705594268859,-500.0,0.00035242,3]
[312067488,1705594268869,-500.0,0.00035242,3]
[312067489,1705594268878,-500.0,0.00035242,3]
[312067490,1705594268889,-500.0,0.00035242,3]
[312067491,1705594268899,-500.0,0.00035242,3]
[312067492,1705594268909,-500.0,0.00035242,3]
[312067493,1705594268918,-500.0,0.00035242,3]
[312067494,1705594268928,-500.0,0.00035242,3]
[312067495,1705594268939,-500.0,0.00035242,3]
[312067496,1705594268948,-500.0,0.00035242,3]
[312067497,1705594268960,-500.0,0.00035242,3]
[312067498,1705594268970,-1970.502977,0.00035242,30]
[312067499,1705594268981,-160.21827242,0.00035251,7]
[312067500,1705594268993,-153.53392265,0.00035261,7]
[312067501,1705594269003,-163.42212588,0.00035264,7]
[312067502,1705594269013,-2404.50751189,0.00035267,30]
[312067503,1705594269023,-156.79579051,0.00035277,7]
[312067504,1705594269033,-206.0,0.0003531,2]
[312067505,1705594269042,-207.0,0.0003531,2]
[312067506,1705594269053,-150.0,0.00035311,2]
[312067507,1705594269064,-150.0,0.00035311,2]
[312067508,1705594269074,-1005.71254253,0.00035315,7]
[312067509,1705594269084,-764.91946665,0.00035315,7]
[312067510,1705594269094,-323.19698098,0.00035315,7]
[312067511,1705594269104,-269.01558498,0.00035315,7]
[312067512,1705594269114,-542.22365339,0.00035315,7]
[312067513,1705594269124,-1000.0,0.00035315,7]
[312067514,1705594269134,-546.94484694,0.00035315,7]
[312067515,1705594269331,-2082.51961137,0.00035315,10]
[312067516,1705594269341,-239.3205633,0.00035315,7]
[312067517,1705594269350,-237.59312444,0.00035315,7]
[312067518,1705594269360,-533.06338774,0.00035315,7]
[312067519,1705594269369,-778.38889118,0.00035315,7]
[312067520,1705594269378,-978.89777478,0.00035315,7]
[312067521,1705594269387,-516.91601808,0.00035315,7]
[312067522,1705594269396,-236.5110074,0.00035315,7]
[312067523,1705594269406,-22328.75710352,0.00035315,10]
[312067524,1705594269415,-165.50897975,0.00035315,7]
[312067525,1705594269424,-171.7344204,0.00035315,7]
[312067526,1705594269433,-199.29538726,0.00035315,7]
[312067527,1705594269442,-287.93421026,0.00035315,10]
[312067528,1705594269452,-439.85926024,0.00035315,7]
[312067529,1705594269461,-1000.0,0.00035315,7]
[312067530,1705594269471,-419.0572079,0.00035315,7]
[312067531,1705594269481,-286.32552443,0.00035315,7]
[312067532,1705594269491,-378.21208035,0.00035315,7]
[312067533,1705594269501,-489.53126622,0.00035315,7]
[312067534,1705594269510,-742.89913065,0.00035315,10]
[312067535,1705594269519,-6351.78756709,0.00035315,10]
[312067536,1705594269529,-232.08570528,0.00035315,7]
[312067537,1705594269538,-623.00701243,0.00035315,7]
[312067538,1705594269547,-35020.56753061,0.00035315,10]
[312067539,1705594269557,-1326.57106298,0.00035315,7]
[312067540,1705594269567,-155.15451029,0.00035315,7]
[312067541,1705594269576,-737.24931699,0.00035315,10]
[312067542,1705594269586,-6303.48166025,0.00035315,10]
[312067543,1705594269595,-290.94267638,0.00035315,7]
[312067544,1705594269604,-193.97029599,0.00035315,7]
[312067545,1705594269614,-295.89952217,0.00035315,10]
[312067546,1705594269623,-446.56809514,0.00035315,7]
[312067547,1705594269633,-427.19606899,0.00035315,7]
[312067548,1705594269643,-1128.40158556,0.00035315,10]
[312067549,1705594269652,-150.0,0.00035328,2]
[312067550,1705594269662,-2029.28,0.00035342,4]
[312067551,1705594269672,-500.0,0.00035342,4]
[312067552,1705594269681,-950.0,0.00035342,7]
[312067553,1705594269691,-450.0,0.00035351,3]
[312067554,1705594269700,-150.508268,0.00035388,2]
[312067555,1705594269710,-1928.311031,0.00035388,2]
[312067556,1705594269719,-1913.056619,0.00035388,2]
[312067557,1705594269729,-710.383309,0.00035388,2]
[312067558,1705594269740,-484.556389,0.00035388,2]
[312067559,1705594269749,-237.093825,0.00035388,2]
[312067560,1705594269759,-768.711369,0.00035388,2]
[312067561,1705594269768,-955.93024,0.00035388,2]
[312067562,1705594269778,-223.793663,0.00035388,2]
[312067563,1705594269787,-178.00000001,0.000354,4]
[312067564,1705594269797,-200.0,0.000354,2]
[312067565,1705594269807,-500.0,0.00035434,14]
[312067566,1705594269818,-972.06,0.00035472,2]
[312067567,1705594269827,-4704.32058608,0.000355,10]
[312067568,1705594269837,-305.23044806,0.000355,2]
[312067569,1705594269846,-10000.0,0.000355,18]
[312067570,1705594269857,-209.16347687,0.000355,30]
[312067571,1705594269866,-1691.13913238,0.000355,2]
[312067572,1705594269877,-2000.0,0.000355,2]
[312067573,1705594269888,-100665.0,0.00035502,2]
[312067574,1705594269898,-1819.0,0.00035502,2]
[312067575,1705594269907,-389.0,0.00035502,2]
[312067576,1705594269917,-2158.72614738,0.00035506,10]
[312067577,1705594269926,-205.0,0.00035533,23]
[312067578,1705594269936,-1000.0,0.00035589,10]
[312067579,1705594269945,-500.0,0.00035589,7]
[312067580,1705594269955,-2772.41513548,0.000356,2]
[312067581,1705594269965,-2029.28,0.00035616,4]
[312067582,1705594269975,-500.0,0.00035616,4]
[312067583,1705594269987,-950.0,0.00035616,7]
[312067584,1705594269997,-500.0,0.00035616,2]
[312067585,1705594270007,-500.0,0.00035616,2]
[312067586,1705594270017,-500.0,0.00035616,2]
[312067587,1705594270027,-500.0,0.00035616,2]
[312067588,1705594270037,-500.0,0.00035616,2]
[312067589,1705594270046,-500.0,0.00035616,2]
[312067590,1705594270056,-500.0,0.00035616,2]
[312067591,1705594270066,-500.0,0.00035616,2]
[312067592,1705594270076,-500.0,0.00035616,2]
[312067593,1705594270085,-500.0,0.00035616,2]
[312067594,1705594270095,-500.0,0.00035616,2]
[312067595,1705594270105,-500.0,0.00035616,2]
[312067596,1705594270115,-500.0,0.00035616,2]
[312067597,1705594270125,-500.0,0.00035616,2]
[312067598,1705594270135,-500.0,0.00035616,2]
[312067599,1705594270145,-500.0,0.00035616,2]
[312067600,1705594270155,-500.0,0.00035616,2]
[312067601,1705594270165,-500.0,0.00035616,2]
[312067602,1705594270175,-500.0,0.00035616,2]
[312067603,1705594270185,-500.0,0.00035616,2]
[312067604,1705594270196,-5337.3,0.00035616,5]
[312067605,1705594270206,-5337.3,0.00035616,5]
[312067606,1705594270216,-5337.3,0.00035616,5]
[312067607,1705594270226,-5337.3,0.00035616,5]
[312067608,1705594270237,-5337.3,0.00035616,5]
[312067609,1705594270246,-5337.3,0.00035616,5]
[312067610,1705594270256,-5337.3,0.00035616,5]
[312067611,1705594270265,-5337.3,0.00035616,5]
[312067612,1705594270275,-5337.3,0.00035616,5]
[312067613,1705594270285,-5337.3,0.00035616,5]
[312067614,1705594270294,-5337.3,0.00035616,5]
[312067615,1705594270303,-150.0,0.00035616,2]
[312067616,1705594270313,-300.0,0.00035616,7]
[312067617,1705594270322,-5337.3,0.00035616,5]
[312067618,1705594270332,-450.0,0.00035616,12]
[312067619,1705594270341,-5337.3,0.00035616,5]
[312067620,1705594270351,-600.0,0.00035616,17]
[312067621,1705594270360,-5337.3,0.00035616,5]
[312067622,1705594270370,-750.0,0.00035616,22]
[312067623,1705594270380,-5337.3,0.00035616,5]
[312067624,1705594270390,-900.0,0.00035616,27]
[312067625,1705594270399,-5337.3,0.00035616,5]
[312067626,1705594270410,-1050.0,0.00035616,32]
[312067627,1705594270420,-5337.3,0.00035616,5]
[312067628,1705594270429,-1200.0,0.00035616,37]
[312067629,1705594270438,-5337.3,0.00035616,5]
[312067630,1705594270447,-5337.3,0.00035616,5]
[312067631,1705594270456,-1350.0,0.00035616,42]
[312067632,1705594270466,-5337.3,0.00035616,5]
[312067633,1705594270475,-1500.0,0.00035616,47]
[312067634,1705594270484,-5337.3,0.00035616,5]
[312067635,1705594270495,-296.26697568,0.00035616,52]
[312067636,1705594270504,-5337.3,0.00035616,5]
[312067637,1705594270513,-5337.3,0.00035616,5]
[312067638,1705594270523,-5337.51212066,0.00035616,5]
[312067639,1705594270532,-153.84,0.00035616,2]
[312067640,1705594270541,-450.0,0.00035681,3]
[312067641,1705594270550,-371.0,0.00035682,2]
[312067642,1705594270559,-18926.69282125,0.000357,2]
[312067643,1705594270569,-1000.0,0.000357,6]
[312067644,1705594270579,-156.0,0.000357,24]
[312067645,1705594270588,-150.0,0.000357,7]
[312067646,1705594270597,-6349.39,0.00035729,2]
[312067647,1705594270607,-152.0,0.0003576,6]
[312067648,1705594270616,-1928.311031,0.0003582,2]
[312067649,1705594270625,-1913.056619,0.0003582,2]
[312067650,1705594270635,-710.383309,0.0003582,2]
[312067651,1705594270644,-484.556389,0.0003582,2]
[312067652,1705594270653,-237.093825,0.0003582,2]
[312067653,1705594270663,-768.711369,0.0003582,2]
[312067654,1705594270672,-955.93024,0.0003582,2]
[312067655,1705594270681,-223.793663,0.0003582,2]
[312067656,1705594270691,-150.0,0.00035847,2]
[312067657,1705594270701,-150.0,0.00035847,2]
[312067658,1705594270710,-3064.21141219,0.00035888,30]
[312067659,1705594270719,-2029.28,0.0003589,4]
[312067660,1705594270728,-531.88449988,0.0003589,4]
[312067661,1705594270738,-950.0,0.0003589,7]
[312067662,1705594270748,-377.688248,0.000359,2]
[312067663,1705594270757,-17708.82127457,0.0003593,2]
[312067664,1705594270766,-150.0,0.00035978,120]
[312067665,1705594270776,-200.0,0.00035987,15]
[312067666,1705594270785,-200.0,0.00035987,5]
[312067667,1705594270794,-500.0,0.00035987,7]
[312067668,1705594270803,-100000.0,0.00036,6]
[312067669,1705594270815,-500.0,0.00036,30]
[312067670,1705594270824,-51100.0,0.00036,4]
[312067671,1705594270834,-400.0,0.00036,3]
[312067672,1705594270843,-15000.0,0.00036,10]
[312067673,1705594270852,-3120.02577585,0.00036,30]
[312067674,1705594270862,-804.0,0.00036,2]
[312067675,1705594270871,-412.18926706,0.00036,5]
[312067676,1705594270879,-6676.0,0.00036,3]
[312067677,1705594270890,-1000.0,0.00036,6]
[312067678,1705594270899,-1000.0,0.00036,2]
[312067679,1705594270909,-250.0,0.00036,2]
[312067680,1705594270918,-3000.0,0.00036,14]
[312067681,1705594270927,-116862.23021145,0.00036,4]
[312067682,1705594270937,-1483.14,0.00036,2]
[312067683,1705594270946,-200.0,0.00036,2]
[312067684,1705594270956,-2500.0,0.00036,21]
[312067685,1705594270965,-350.0,0.00036,2]
[312067686,1705594270975,-5000.0,0.00036,7]
[312067687,1705594270984,-5000.0,0.00036,7]
[312067688,1705594270993,-305.82275039,0.00036,3]
[312067689,1705594271004,-32296.83596991,0.00036,7]
[312067690,1705594271014,-5000.0,0.00036,4]
[312067691,1705594271024,-9000.0,0.00036,9]
[312067692,1705594271035,-2000.0,0.00036,120]
[312067693,1705594271044,-300.0,0.00036,37]
[312067694,1705594271053,-173.0,0.00036,2]
[312067695,1705594271062,-5000.0,0.00036,10]
[312067696,1705594271072,-2000.0,0.00036,2]
[312067697,1705594271081,-28083.27,0.00036,7]
[312067698,1705594271091,-30505.25,0.00036,7]
[312067699,1705594271100,-48906.38,0.00036,7]
[312067700,1705594271110,-300.0,0.00036,10]
[312067701,1705594271121,-1299.889667,0.00036,4]
[312067702,1705594271130,-1039.9117336,0.00036,4]
[312067703,1705594271141,-900.0,0.00036,3]
[312067704,1705594271151,-373.533619,0.00036,30]
[312067705,1705594271160,-150.0,0.00036,10]
[312067706,1705594271170,-150.0,0.00036,10]
[312067707,1705594271179,-450.0,0.00036012,3]
[312067708,1705594271189,-2052.0,0.00036039,30]
[312067709,1705594271198,-150.0,0.00036049,2]
[312067710,1705594271208,-1000.0,0.00036137,10]
[312067711,1705594271218,-500.0,0.00036137,10]
[312067712,1705594271228,-310.72,0.00036155,2]
[312067713,1705594271239,-1997.38,0.0003616,2]
[312067714,1705594271249,-2029.28,0.00036164,4]
[312067715,1705594271258,-950.0,0.00036164,7]
[312067716,1705594271268,-500.0,0.00036164,14]
[312067717,1705594271277,-1380.929869,0.00036164,14]
[312067718,1705594271287,-1098.2726007,0.000362,2]
[312067719,1705594271296,-156.0,0.000362,25]
[312067720,1705594271306,-150.0,0.000362,8]
[312067721,1705594271315,-150.508268,0.00036252,2]
[312067722,1705594271326,-1928.311031,0.00036252,2]
[312067723,1705594271335,-1913.056619,0.00036252,2]
[312067724,1705594271345,-710.383309,0.00036252,2]
[312067725,1705594271355,-484.556389,0.00036252,2]
[312067726,1705594271365,-237.093825,0.00036252,2]
[312067727,1705594271376,-768.711369,0.00036252,2]
[312067728,1705594271387,-955.93024,0.00036252,2]
[312067729,1705594271397,-223.793663,0.00036252,2]
[312067730,1705594271406,-2189.27,0.000363,3]
[312067731,1705594271415,-2189.27,0.000363,3]
[312067732,1705594271425,-2189.27,0.000363,3]
[312067733,1705594271435,-2189.27,0.000363,3]
[312067734,1705594271444,-2189.27,0.000363,3]
[312067735,1705594271455,-2189.27,0.000363,3]
[312067736,1705594271464,-2189.27,0.000363,3]
[312067737,1705594271474,-2189.27,0.000363,3]
[312067738,1705594271483,-2189.27,0.000363,3]
[312067739,1705594271497,-2189.27,0.000363,3]
[312067740,1705594271507,-2189.27,0.000363,3]
[312067741,1705594271516,-2189.27,0.000363,3]
[312067742,1705594271526,-2189.27,0.000363,3]
[312067743,1705594271535,-2189.27,0.000363,3]
[312067744,1705594271545,-2189.27,0.000363,3]
[312067745,1705594271554,-2189.27,0.000363,3]
[312067746,1705594271617,-2189.27,0.000363,3]
[312067747,1705594271627,-2189.27,0.000363,3]
[312067748,1705594271636,-2189.27,0.000363,3]
[312067749,1705594271645,-2189.27,0.000363,3]
[312067750,1705594271654,-450.0,0.00036343,3]
[312067751,1705594271663,-150.0,0.00036383,2]
[312067752,1705594271672,-150.0,0.00036383,2]
[312067753,1705594271681,-500.0,0.000364,2]
[312067754,1705594271691,-2029.28,0.00036438,4]
[312067755,1705594271700,-950.0,0.00036438,7]
[312067756,1705594271710,-150.0,0.00036438,2]
[312067757,1705594271719,-150.0,0.00036438,11]
[312067758,1705594271730,-150.0,0.00036438,21]
[312067759,1705594271741,-150.0,0.00036438,31]